[Event "Najdorf Memorial-B 2022"]
[Site "Warsaw"]
[Date "2022.07.10"]
[Round "2.14"]
[White "Yasmo, Daniil"]
[Black "Adamowicz, Michal"]
[Result "1-0"]
[ECO "B20"]
[WhiteElo "1680"]
[BlackElo "1408"]
[Annotator "NA RC"]
[PlyCount "89"]
[EventDate "2022.07.09"]
[EventType "swiss"]
[EventCountry "POL"]
[SourceTitle "playchess.com"]
[Source "ChessBase"]
[SourceQuality "1"]
[TimeControl "40/5400+30:1800+30"]

1. e4 {[%emt 0:34:25]} c5 {[%emt 0:00:49]} 2. c4 {[%emt 0:00:25]} Nc6 {[%emt 0:00:09]} 3. Nc3 {[%emt 0:00:07]} Nf6 {[%emt 0:00:59]} 4. g3 {[%emt 0:00:22]} d6 {[%emt 0:00:16]} 5. Bg2 {[%emt 0:00:10]} g6 {[%emt 0:00:12]} 6. Nge2 {[%emt 0:00:17]} Bg7 {[%emt 0:00:16]} 7. O-O {[%emt 0:00:11]} O-O {[%emt 0:01:41]} 8. a3 {[%emt 0:00:36]} a6 {[%emt 0:01:35]} 9. Rb1 {[%emt 0:00:13]} Rb8 {[%emt 0:00:29]} 10. b4 {[%emt 0:00:37]} cxb4 {[%emt 0:00:44]} 11. axb4 {[%emt 0:00:06]} b5 {[%emt 0:00:14]} 12. cxb5 {[%emt 0:01:08]} axb5 {[%emt 0:00:09]} 13. d4 {[%emt 0:00:46]} e5 {[%emt 0:12:47]} 14. dxe5 {[%emt 0:05:14]} dxe5 {[%emt 0:01:36]} 15. Nd5 {[%emt 0:00:25]} Nxd5 {[%emt 0:02:30]} 16. exd5 {[%emt 0:00:07]} Nd4 {[%emt 0:00:37]} 17. Nxd4 {[%emt 0:00:18]} exd4 {[%emt 0:00:07]} 18. Bf4 {[%emt 0:00:29]} Ra8 {[%emt 0:07:52]} 19. Rc1 {[%emt 0:03:07]} Ra4 {[%emt 0:04:11]} 20. Bc7 {[%emt 0:01:03]} Qg5 {[%emt 0:07:00]} 21. h4 {[%emt 0:07:13]} Qg4 {[%emt 0:05:57]} 22. Bf3 {[%emt 0:01:08]} Qf5 {[%emt 0:00:40]} 23. Bd6 {[%emt 0:04:53]} Rd8 {[%emt 0:07:52]} 24. Be7 {[%emt 0:00:17]} Re8 {[%emt 0:00:54]} 25. d6 {[%emt 0:00:35]} Bd7 {[%emt 0:01:32]} 26. Rc7 {[%emt 0:01:53]} Be5 {[%emt 0:09:00]} 27. Re1 {[%emt 0:06:33]} f6 {[%emt 0:13:19]} 28. Bd5+ {[%emt 0:01:13]} Kg7 {[%emt 0:00:44]} 29. Be4 {[%emt 0:15:26]} Qe6 {[%emt 0:02:14]} 30. Bc2 {[%emt 0:04:45]} Rxb4 {[%emt 0:03:27]} 31. f4 {[%emt 0:01:47]} Qh3 {[%emt 0:01:02]} 32. Qf3 {[%emt 0:01:25]} Rxe7 {[%emt 0:01:16]} 33. fxe5 {[%emt 0:01:39]} Rf7 {[%emt 0:01:20]} 34. exf6+ {[%emt 0:02:48]} Rxf6 {[%emt 0:01:39]} 35. Rxd7+ {[%emt 0:03:48]} Qxd7 {[%emt 0:00:30]} 36. Re7+ {[%emt 0:00:06]} Qxe7 {[%emt 0:00:39]} 37. dxe7 {[%emt 0:00:06]} Rxf3 {[%emt 0:00:24]} 38. e8=Q {[%emt 0:00:10]} Rb2 {[%emt 0:02:55]} 39. Qe5+ {[%emt 0:00:53]} Kh6 {[%emt 0:01:35]} 40. Qg5+ {[%emt 0:00:00]} Kg7 {[%emt 0:00:00]} 41. Qe5+ {[%emt 0:00:12]} Kh6 {[%emt 0:00:36]} 42. Be4 {[%emt 0:03:19]} Re3 {[%emt 0:04:44]} 43. Qg5+ {[%emt 0:00:22]} Kg7 {[%emt 0:00:19]} 44. Qe7+ {[%emt 0:00:07]} Kh6 {[%emt 0:02:23]} 45. Qf8+ {[%emt 0:00:11]} 1-0

[Event "Najdorf Memorial-B 2022"]
[Site "Warsaw"]
[Date "2022.07.10"]
[Round "2.15"]
[White "Rutkowski, Feliks"]
[Black "Warcaba, Jakub"]
[Result "1/2-1/2"]
[ECO "B80"]
[WhiteElo "1406"]
[BlackElo "1674"]
[Annotator "NA RC"]
[PlyCount "103"]
[EventDate "2022.07.09"]
[EventType "swiss"]
[EventCountry "POL"]
[SourceTitle "playchess.com"]
[Source "ChessBase"]
[SourceQuality "1"]
[TimeControl "40/5400+30:1800+30"]

1. e4 {[%emt 0:00:01]} c5 {[%emt 0:00:41]} 2. Nf3 {[%emt 0:00:05]} e6 {[%emt 0:00:24]} 3. d4 {[%emt 0:00:07]} cxd4 {[%emt 0:00:09]} 4. Nxd4 {[%emt 0:00:06]} Nf6 {[%emt 0:00:07]} 5. Nc3 {[%emt 0:00:09]} d6 {[%emt 0:00:51]} 6. f3 {[%emt 0:01:14]} a6 {[%emt 0:05:23]} 7. a4 {[%emt 0:02:29]} Be7 {[%emt 0:02:15]} 8. Be3 {[%emt 0:03:32]} Nc6 {[%emt 0:04:29]} 9. Nb3 {[%emt 0:07:46]} Na5 {[%emt 0:06:44]} 10. Nd4 {[%emt 0:17:47]} Qc7 {[%emt 0:07:13]} 11. Qd2 {[%emt 0:05:14]} e5 {[%emt 0:09:48]} 12. Nf5 {[%emt 0:02:45]} Bxf5 {[%emt 0:00:18]} 13. exf5 {[%emt 0:00:08]} d5 {[%emt 0:00:58]} 14. Nxd5 {[%emt 0:23:57]} Nxd5 {[%emt 0:00:18]} 15. Qxd5 {[%emt 0:00:06]} Rd8 {[%emt 0:00:23]} 16. Qe4 {[%emt 0:00:29]} Bc5 {[%emt 0:04:03]} 17. Bd3 {[%emt 0:07:27]} Bxe3 {[%emt 0:02:03]} 18. Qxe3 {[%emt 0:00:07]} Nc4 {[%emt 0:00:12]} 19. Bxc4 {[%emt 0:11:29]} Qxc4 {[%emt 0:00:04]} 20. Qxe5+ {[%emt 0:00:24]} Kf8 {[%emt 0:00:05]} 21. Qc3 {[%emt 0:01:20]} Re8+ {[%emt 0:14:22]} 22. Kf2 {[%emt 0:00:57]} Re2+ {[%emt 0:00:40]} 23. Kg3 {[%emt 0:00:42]} Qxc3 {[%emt 0:06:37]} 24. bxc3 {[%emt 0:00:07]} h5 {[%emt 0:00:02]} 25. Rac1 {[%emt 0:08:18]} Rh6 {[%emt 0:00:33]} 26. Rhe1 {[%emt 0:00:42]} Rd2 {[%emt 0:00:35]} 27. Rcd1 {[%emt 0:00:52]} Rhd6 {[%emt 0:00:16]} 28. Rxd2 {[%emt 0:00:12]} Rxd2 {[%emt 0:00:06]} 29. Rb1 {[%emt 0:02:01]} Rxc2 {[%emt 0:01:29]} 30. Rxb7 {[%emt 0:00:06]} Rxc3 {[%emt 0:00:12]} 31. Rb6 {[%emt 0:00:22]} h4+ {[%emt 0:01:22]} 32. Kh3 {[%emt 0:00:19]} a5 {[%emt 0:00:14]} 33. Rb5 {[%emt 0:00:09]} Ke7 {[%emt 0:00:14]} 34. Rxa5 {[%emt 0:00:14]} Rc4 {[%emt 0:00:06]} 35. Ra8 {[%emt 0:00:41]} Kf6 {[%emt 0:00:11]} 36. Rh8 {[%emt 0:01:34]} Rxa4 {[%emt 0:01:20]} 37. Rxh4 {[%emt 0:00:10]} Rxh4+ {[%emt 0:00:45]} 38. Kxh4 {[%emt 0:00:08]} Kxf5 {[%emt 0:00:05]} 39. Kg3 {[%emt 0:03:01]} g5 {[%emt 0:04:40]} 40. f4 {[%emt 0:00:00]} f6 {[%emt 0:00:00]} 41. fxg5 {[%emt 0:02:12]} fxg5 {[%emt 0:01:04]} 42. h4 {[%emt 0:00:14]} Kg6 {[%emt 0:01:20]} 43. Kg4 {[%emt 0:00:52]} gxh4 {[%emt 0:00:19]} 44. Kxh4 {[%emt 0:00:08]} Kh6 {[%emt 0:01:42]} 45. Kg4 {[%emt 0:00:12]} Kg6 {[%emt 0:00:09]} 46. g3 {[%emt 0:00:10]} Kh6 {[%emt 0:02:07]} 47. Kf5 {[%emt 0:01:05]} Kh5 {[%emt 0:00:35]} 48. g4+ {[%emt 0:00:12]} Kh6 {[%emt 0:00:04]} 49. Kf6 {[%emt 0:01:02]} Kh7 {[%emt 0:00:09]} 50. g5 {[%emt 0:00:27]} Kg8 {[%emt 0:00:42]} 51. Kg6 {[%emt 0:00:05]} Kh8 {[%emt 0:00:12]} 52. Kf7 {[%emt 0:00:09]} 1/2-1/2

[Event "Najdorf Memorial-B 2022"]
[Site "Warsaw"]
[Date "2022.07.10"]
[Round "2.16"]
[White "Smeryk, Andriy"]
[Black "Wieckowski, Michal"]
[Result "1/2-1/2"]
[ECO "A01"]
[WhiteElo "1397"]
[BlackElo "1669"]
[Annotator "NA RC"]
[PlyCount "93"]
[EventDate "2022.07.09"]
[EventType "swiss"]
[EventCountry "POL"]
[SourceTitle "playchess.com"]
[Source "ChessBase"]
[SourceQuality "1"]
[TimeControl "40/5400+30:1800+30"]

1. b3 {[%emt 0:00:02]} d5 {[%emt 0:00:46]} 2. Bb2 {[%emt 0:00:07]} c5 {[%emt 0:00:20]} 3. e3 {[%emt 0:00:12]} Nc6 {[%emt 0:00:10]} 4. f4 {[%emt 0:00:16]} e6 {[%emt 0:01:02]} 5. Nf3 {[%emt 0:00:16]} Nf6 {[%emt 0:00:11]} 6. Bd3 {[%emt 0:02:02]} Be7 {[%emt 0:04:06]} 7. O-O {[%emt 0:01:42]} O-O {[%emt 0:00:51]} 8. Ne5 {[%emt 0:01:45]} Bd7 {[%emt 0:13:56]} 9. Rf3 {[%emt 0:02:49]} Nxe5 {[%emt 0:14:53]} 10. Bxe5 {[%emt 0:01:05]} g6 {[%emt 0:03:06]} 11. Rh3 {[%emt 0:08:20]} Ne4 {[%emt 0:05:16]} 12. Qf3 {[%emt 0:08:19]} f6 {[%emt 0:02:43]} 13. Bb2 {[%emt 0:02:08]} e5 {[%emt 0:00:55]} 14. Rh4 {[%emt 0:10:15]} f5 {[%emt 0:00:50]} 15. Rh6 {[%emt 0:01:50]} Bf6 {[%emt 0:07:27]} 16. Bxe5 {[%emt 0:25:52]} Bxe5 {[%emt 0:00:24]} 17. fxe5 {[%emt 0:00:10]} Qe7 {[%emt 0:00:26]} 18. Bxe4 {[%emt 0:01:15]} fxe4 {[%emt 0:03:27]} 19. Qg3 {[%emt 0:00:27]} Rf5 {[%emt 0:00:25]} 20. Nc3 {[%emt 0:02:24]} Qxe5 {[%emt 0:00:31]} 21. Qxe5 {[%emt 0:02:42]} Rxe5 {[%emt 0:00:01]} 22. Rh4 {[%emt 0:00:39]} Rf8 {[%emt 0:06:21]} 23. Rf4 {[%emt 0:02:33]} Ref5 {[%emt 0:00:45]} 24. Raf1 {[%emt 0:01:52]} Rxf4 {[%emt 0:00:48]} 25. Rxf4 {[%emt 0:00:05]} Rxf4 {[%emt 0:00:05]} 26. exf4 {[%emt 0:00:04]} Bc6 {[%emt 0:00:06]} 27. Nd1 {[%emt 0:02:01]} d4 {[%emt 0:03:02]} 28. Nf2 {[%emt 0:02:14]} Kf7 {[%emt 0:04:03]} 29. Ng4 {[%emt 0:01:08]} Ke6 {[%emt 0:02:33]} 30. g3 {[%emt 0:01:25]} Kf5 {[%emt 0:06:03]} 31. Nh6+ {[%emt 0:00:28]} Ke6 {[%emt 0:00:05]} 32. Ng4 {[%emt 0:00:03]} a5 {[%emt 0:02:34]} 33. Ne5 {[%emt 0:02:10]} Be8 {[%emt 0:01:27]} 34. Nc4 {[%emt 0:04:40]} a4 {[%emt 0:00:30]} 35. Nb6 {[%emt 0:01:01]} axb3 {[%emt 0:00:30]} 36. axb3 {[%emt 0:00:14]} Bc6 {[%emt 0:01:56]} 37. Kf2 {[%emt 0:01:59]} Kf5 {[%emt 0:03:21]} 38. h3 {[%emt 0:01:01]} h5 {[%emt 0:00:01]} 39. h4 {[%emt 0:02:12]} Kg4 {[%emt 0:04:36]} 40. Nc4 {[%emt 0:00:00]} Kh3 {[%emt 0:00:00]} 41. Ne5 {[%emt 0:05:29]} Be8 {[%emt 0:00:26]} 42. Nc4 {[%emt 0:01:10]} b5 {[%emt 0:04:26]} 43. Nd6 {[%emt 0:01:17]} Bc6 {[%emt 0:00:28]} 44. f5 {[%emt 0:00:09]} gxf5 {[%emt 0:01:27]} 45. Nxf5 {[%emt 0:00:03]} Bd7 {[%emt 0:02:05]} 46. Nd6 {[%emt 0:03:13]} Bc6 {[%emt 0:00:22]} 47. Nf5 {[%emt 0:00:21]} 1/2-1/2

[Event "Najdorf Memorial-B 2022"]
[Site "Warsaw"]
[Date "2022.07.10"]
[Round "2.17"]
[White "Machnik, Stanislaw"]
[Black "Carrieri, Maurizio"]
[Result "1-0"]
[ECO "B33"]
[WhiteElo "1381"]
[BlackElo "1666"]
[Annotator "NA RC"]
[PlyCount "89"]
[EventDate "2022.07.09"]
[EventType "swiss"]
[EventCountry "POL"]
[SourceTitle "playchess.com"]
[Source "ChessBase"]
[SourceQuality "1"]
[TimeControl "40/5400+30:1800+30"]

1. e4 {[%emt 0:00:02]} c5 {[%emt 0:00:06]} 2. Nf3 {[%emt 0:00:03]} Nc6 {[%emt 0:00:06]} 3. d4 {[%emt 0:00:04]} cxd4 {[%emt 0:00:04]} 4. Nxd4 {[%emt 0:00:04]} Nf6 {[%emt 0:00:06]} 5. Nc3 {[%emt 0:00:04]} e5 {[%emt 0:00:05]} 6. Ndb5 {[%emt 0:00:03]} d6 {[%emt 0:00:09]} 7. Bg5 {[%emt 0:00:16]} a6 {[%emt 0:00:12]} 8. Na3 {[%emt 0:00:03]} b5 {[%emt 0:00:10]} 9. Nd5 {[%emt 0:00:04]} Be7 {[%emt 0:00:15]} 10. Bxf6 {[%emt 0:00:18]} Bxf6 {[%emt 0:00:05]} 11. c3 {[%emt 0:00:06]} Bg5 {[%emt 0:00:18]} 12. h4 {[%emt 0:04:33]} Bh6 {[%emt 0:00:39]} 13. g4 {[%emt 0:00:08]} Bf4 {[%emt 0:00:08]} 14. Qf3 {[%emt 0:00:46]} Be6 {[%emt 0:07:07]} 15. Nxf4 {[%emt 0:00:17]} exf4 {[%emt 0:00:05]} 16. Qxf4 {[%emt 0:00:06]} Ne5 {[%emt 0:00:42]} 17. Qg3 {[%emt 0:05:23]} Bxg4 {[%emt 0:08:53]} 18. Be2 {[%emt 0:00:09]} Bxe2 {[%emt 0:11:21]} 19. Kxe2 {[%emt 0:00:03]} Qf6 {[%emt 0:02:23]} 20. Rhg1 {[%emt 0:25:29]} Rc8 {[%emt 0:08:47]} 21. f4 {[%emt 0:03:53]} Ng6 {[%emt 0:01:14]} 22. f5 {[%emt 0:05:38]} Ne5 {[%emt 0:04:30]} 23. Qxg7 {[%emt 0:01:01]} Qxg7 {[%emt 0:00:14]} 24. Rxg7 {[%emt 0:00:02]} Ke7 {[%emt 0:03:44]} 25. Nc2 {[%emt 0:03:24]} Ng6 {[%emt 0:00:53]} 26. fxg6 {[%emt 0:05:43]} hxg6 {[%emt 0:00:06]} 27. Rf1 {[%emt 0:00:07]} Rcf8 {[%emt 0:02:14]} 28. Rf4 {[%emt 0:06:11]} Rh5 {[%emt 0:01:40]} 29. Ne1 {[%emt 0:06:07]} a5 {[%emt 0:01:22]} 30. Nf3 {[%emt 0:00:22]} a4 {[%emt 0:01:08]} 31. Ng5 {[%emt 0:00:15]} Ke8 {[%emt 0:00:21]} 32. Rgxf7 {[%emt 0:00:41]} Rxf7 {[%emt 0:00:13]} 33. Nxf7 {[%emt 0:00:02]} Ke7 {[%emt 0:00:50]} 34. Ng5 {[%emt 0:00:06]} Kd7 {[%emt 0:01:16]} 35. Kd3 {[%emt 0:00:16]} Kc6 {[%emt 0:00:35]} 36. Kd4 {[%emt 0:01:06]} Rh8 {[%emt 0:00:57]} 37. Ne6 {[%emt 0:00:30]} Rh5 {[%emt 0:00:57]} 38. Nf8 {[%emt 0:00:41]} g5 {[%emt 0:00:40]} 39. hxg5 {[%emt 0:05:44]} Rxg5 {[%emt 0:00:08]} 40. Ke3 {[%emt 0:00:00]} Rg2 {[%emt 0:00:00]} 41. Rf2 {[%emt 0:02:57]} Rxf2 {[%emt 0:01:54]} 42. Kxf2 {[%emt 0:00:07]} a3 {[%emt 0:00:16]} 43. b3 {[%emt 0:00:29]} b4 {[%emt 0:01:26]} 44. c4 {[%emt 0:00:17]} Kc5 {[%emt 0:00:12]} 45. Ne6+ {[%emt 0:00:11]} 1-0

[Event "Najdorf Memorial-B 2022"]
[Site "Warsaw"]
[Date "2022.07.11"]
[Round "3.1"]
[White "Grudzinski, Krzysztof"]
[Black "Mazur, Wojciech"]
[Result "1-0"]
[ECO "E59"]
[WhiteElo "1520"]
[BlackElo "1750"]
[Annotator "NA RC"]
[PlyCount "85"]
[EventDate "2022.07.09"]
[EventType "swiss"]
[EventCountry "POL"]
[SourceTitle "playchess.com"]
[Source "ChessBase"]
[SourceQuality "1"]
[TimeControl "40/5400+30:1800+30"]

1. d4 {[%emt 0:00:05]} Nf6 {[%emt 0:00:08]} 2. c4 {[%emt 0:00:12]} e6 {[%emt 0:00:03]} 3. Nc3 {[%emt 0:00:16]} Bb4 {[%emt 0:00:06]} 4. e3 {[%emt 0:00:21]} O-O {[%emt 0:00:09]} 5. Bd3 {[%emt 0:00:26]} d5 {[%emt 0:00:05]} 6. Nf3 {[%emt 0:00:30]} c5 {[%emt 0:00:06]} 7. O-O {[%emt 0:00:52]} Nc6 {[%emt 0:00:05]} 8. a3 {[%emt 0:01:29]} Bxc3 {[%emt 0:00:06]} 9. bxc3 {[%emt 0:00:14]} dxc4 {[%emt 0:00:22]} 10. Bxc4 {[%emt 0:00:12]} Qc7 {[%emt 0:00:03]} 11. Ba2 {[%emt 0:01:41]} e5 {[%emt 0:13:03]} 12. h3 {[%emt 0:12:35]} e4 {[%emt 0:10:43]} 13. Nd2 {[%emt 0:00:48]} Bf5 {[%emt 0:00:40]} 14. Qe2 {[%emt 0:06:45]} Rfe8 {[%emt 0:12:47]} 15. Bb2 {[%emt 0:10:56]} Rad8 {[%emt 0:02:29]} 16. Rfe1 {[%emt 0:13:15]} Qe7 {[%emt 0:06:29]} 17. Nf1 {[%emt 0:04:16]} h5 {[%emt 0:04:46]} 18. Nd2 {[%emt 0:17:39]} h4 {[%emt 0:04:09]} 19. Nb3 {[%emt 0:03:06]} cxd4 {[%emt 0:02:52]} 20. cxd4 {[%emt 0:00:27]} Bc8 {[%emt 0:10:29]} 21. Rec1 {[%emt 0:04:24]} Nd5 {[%emt 0:06:44]} 22. Nd2 {[%emt 0:06:59]} Qg5 {[%emt 0:02:03]} 23. Kh1 {[%emt 0:03:13]} Re6 {[%emt 0:05:32]} 24. Rg1 {[%emt 0:01:35]} Qe7 {[%emt 0:02:00]} 25. Rac1 {[%emt 0:00:54]} b6 {[%emt 0:02:17]} 26. Qb5 {[%emt 0:01:11]} a6 {[%emt 0:01:00]} 27. Qe2 {[%emt 0:02:06]} g5 {[%emt 0:01:10]} 28. Nxe4 {[%emt 0:04:31]} Rxe4 {[%emt 0:07:28]} 29. Rxc6 {[%emt 0:00:13]} Bb7 {[%emt 0:00:28]} 30. Rh6 {[%emt 0:02:18]} g4 {[%emt 0:02:57]} 31. hxg4 {[%emt 0:00:25]} Kg7 {[%emt 0:01:21]} 32. g5 {[%emt 0:00:18]} Nf4 {[%emt 0:01:14]} 33. d5+ {[%emt 0:00:35]} Re5 {[%emt 0:00:35]} 34. Bxe5+ {[%emt 0:01:19]} Qxe5 {[%emt 0:00:04]} 35. Qg4 {[%emt 0:00:09]} Ng6 {[%emt 0:00:43]} 36. Qh5 {[%emt 0:00:43]} h3 {[%emt 0:00:52]} 37. Rxg6+ {[%emt 0:01:04]} fxg6 {[%emt 0:00:03]} 38. Qh6+ {[%emt 0:00:09]} Kf7 {[%emt 0:00:11]} 39. d6+ {[%emt 0:00:42]} Bd5 {[%emt 0:00:25]} 40. Qh7+ {[%emt 0:00:00]} Kf8 {[%emt 0:00:00]} 41. Bxd5 {[%emt 0:11:04]} Qxd5 {[%emt 0:01:51]} 42. Qh8+ {[%emt 0:00:19]} Kf7 {[%emt 0:00:10]} 43. Qf6+ {[%emt 0:01:23]} 1-0

[Event "Najdorf Memorial-B 2022"]
[Site "Warsaw"]
[Date "2022.07.11"]
[Round "3.2"]
[White "Mossakowski, Jakub"]
[Black "Gajewski, Dariusz"]
[Result "1-0"]
[ECO "A04"]
[WhiteElo "1487"]
[BlackElo "1697"]
[Annotator "NA"]
[PlyCount "127"]
[EventDate "2022.07.09"]
[EventType "swiss"]
[EventCountry "POL"]
[SourceTitle "playchess.com"]
[Source "ChessBase"]
[SourceQuality "1"]
[TimeControl "40/5400+30:1800+30"]

1. Nf3 {[%emt 0:00:03]} g6 {[%emt 0:31:36]} 2. d4 {[%emt 0:00:15]} Bg7 {[%emt 0:00:15]} 3. c4 {[%emt 0:00:05]} d6 {[%emt 0:00:03]} 4. Nc3 {[%emt 0:00:04]} Nf6 {[%emt 0:00:04]} 5. e4 {[%emt 0:00:07]} O-O {[%emt 0:00:04]} 6. h3 {[%emt 0:00:06]} Nc6 {[%emt 0:00:04]} 7. Be3 {[%emt 0:00:29]} e5 {[%emt 0:00:05]} 8. d5 {[%emt 0:00:06]} Ne7 {[%emt 0:00:12]} 9. Bd3 {[%emt 0:03:31]} Nh5 {[%emt 0:01:57]} 10. g4 {[%emt 0:01:10]} Nf4 {[%emt 0:00:15]} 11. Qd2 {[%emt 0:00:52]} Ng2+ {[%emt 0:00:07]} 12. Kd1 {[%emt 0:00:21]} Nxe3+ {[%emt 0:00:06]} 13. fxe3 {[%emt 0:01:20]} Bd7 {[%emt 0:01:38]} 14. Kc2 {[%emt 0:00:26]} a6 {[%emt 0:00:18]} 15. Rag1 {[%emt 0:01:16]} c6 {[%emt 0:00:17]} 16. h4 {[%emt 0:00:45]} h6 {[%emt 0:00:41]} 17. Qf2 {[%emt 0:02:39]} b5 {[%emt 0:00:26]} 18. h5 {[%emt 0:01:30]} g5 {[%emt 0:01:14]} 19. Nxg5 {[%emt 0:02:00]} bxc4 {[%emt 0:01:29]} 20. Bxc4 {[%emt 0:01:11]} cxd5 {[%emt 0:00:50]} 21. exd5 {[%emt 0:00:54]} Rc8 {[%emt 0:00:57]} 22. Bb3 {[%emt 0:02:12]} a5 {[%emt 0:11:30]} 23. a3 {[%emt 0:01:02]} a4 {[%emt 0:00:26]} 24. Ba2 {[%emt 0:00:27]} hxg5 {[%emt 0:06:04]} 25. h6 {[%emt 0:00:20]} Qa5 {[%emt 0:05:31]} 26. hxg7 {[%emt 0:01:25]} Kxg7 {[%emt 0:00:44]} 27. Rh5 {[%emt 0:01:59]} f6 {[%emt 0:07:24]} 28. Rgh1 {[%emt 0:03:45]} Kf7 {[%emt 0:01:39]} 29. Rh7+ {[%emt 0:12:40]} Ke8 {[%emt 0:00:10]} 30. Rh8 {[%emt 0:00:51]} Ng8 {[%emt 0:05:25]} 31. R1h7 {[%emt 0:08:35]} Rc7 {[%emt 0:05:53]} 32. Qf3 {[%emt 0:08:18]} Bc8 {[%emt 0:03:58]} 33. Qh3 {[%emt 0:02:42]} Qa7 {[%emt 0:06:32]} 34. Qh5+ {[%emt 0:04:32]} Kd8 {[%emt 0:02:04]} 35. Rxc7 {[%emt 0:01:57]} Qxc7 {[%emt 0:03:02]} 36. Qg6 {[%emt 0:02:28]} Bxg4 {[%emt 0:01:43]} 37. Kb1 {[%emt 0:13:24]} Qd7 {[%emt 0:00:40]} 38. e4 {[%emt 0:01:06]} Qe8 {[%emt 0:00:52]} 39. Qg7 {[%emt 0:01:33]} Bd7 {[%emt 0:01:10]} 40. Bc4 {[%emt 0:00:00]} g4 {[%emt 0:00:00]} 41. Bb5 {[%emt 0:04:24]} Qe7 {[%emt 0:03:58]} 42. Rxg8 {[%emt 0:03:03]} Rxg8 {[%emt 0:01:36]} 43. Qxg8+ {[%emt 0:00:43]} Kc7 {[%emt 0:00:21]} 44. Be2 {[%emt 0:04:00]} f5 {[%emt 0:00:11]} 45. Nb5+ {[%emt 0:04:51]} Kb7 {[%emt 0:00:29]} 46. Qg6 {[%emt 0:02:03]} Bxb5 {[%emt 0:00:09]} 47. Bxb5 {[%emt 0:00:45]} fxe4 {[%emt 0:02:00]} 48. Qxg4 {[%emt 0:01:29]} Kb6 {[%emt 0:00:27]} 49. Bxa4 {[%emt 0:01:43]} Qh7 {[%emt 0:02:17]} 50. Bc2 {[%emt 0:01:04]} Qh1+ {[%emt 0:00:15]} 51. Qd1 {[%emt 0:01:54]} Qf3 {[%emt 0:01:36]} 52. Qxf3 {[%emt 0:06:29]} exf3 {[%emt 0:00:01]} 53. Kc1 {[%emt 0:01:40]} Kc5 {[%emt 0:00:04]} 54. Kd2 {[%emt 0:01:37]} Kd4 {[%emt 0:00:18]} 55. a4 {[%emt 0:02:59]} e4 {[%emt 0:00:03]} 56. a5 {[%emt 0:01:00]} e3+ {[%emt 0:00:02]} 57. Ke1 {[%emt 0:00:21]} Kxd5 {[%emt 0:00:11]} 58. b4 {[%emt 0:01:38]} f2+ {[%emt 0:01:08]} 59. Ke2 {[%emt 0:00:16]} Kd4 {[%emt 0:03:38]} 60. a6 {[%emt 0:02:11]} Kc3 {[%emt 0:00:01]} 61. a7 {[%emt 0:02:06]} f1=Q+ {[%emt 0:00:25]} 62. Kxf1 {[%emt 0:00:13]} Kd2 {[%emt 0:00:01]} 63. Bd3 {[%emt 0:00:21]} Kxd3 {[%emt 0:00:10]} 64. a8=Q 1-0

[Event "Najdorf Memorial-B 2022"]
[Site "Warsaw"]
[Date "2022.07.11"]
[Round "3.3"]
[White "Prokopiuk, Jakub"]
[Black "Przybylski, Jan"]
[Result "1/2-1/2"]
[ECO "B81"]
[WhiteElo "1481"]
[BlackElo "1685"]
[Annotator "NA RC"]
[PlyCount "83"]
[EventDate "2022.07.09"]
[EventType "swiss"]
[EventCountry "POL"]
[SourceTitle "playchess.com"]
[Source "ChessBase"]
[SourceQuality "1"]
[TimeControl "40/5400+30:1800+30"]

1. e4 {[%emt 0:00:02]} c5 {[%emt 0:00:04]} 2. Nf3 {[%emt 0:00:06]} e6 {[%emt 0:00:05]} 3. d4 {[%emt 0:00:10]} cxd4 {[%emt 0:00:06]} 4. Nxd4 {[%emt 0:00:01]} Nf6 {[%emt 0:00:12]} 5. Nc3 {[%emt 0:00:02]} d6 {[%emt 0:00:07]} 6. g4 {[%emt 0:01:15]} h6 {[%emt 0:00:52]} 7. Rg1 {[%emt 0:00:05]} Nc6 {[%emt 0:01:46]} 8. Be3 {[%emt 0:00:20]} d5 {[%emt 0:07:43]} 9. exd5 {[%emt 0:00:47]} Nxd5 {[%emt 0:00:18]} 10. Nxd5 {[%emt 0:00:10]} exd5 {[%emt 0:00:47]} 11. Qd2 {[%emt 0:02:40]} Bd6 {[%emt 0:11:19]} 12. O-O-O {[%emt 0:07:50]} Bxh2 {[%emt 0:13:53]} 13. Rg2 {[%emt 0:03:14]} Be5 {[%emt 0:08:11]} 14. Bb5 {[%emt 0:07:23]} Qd6 {[%emt 0:10:30]} 15. c3 {[%emt 0:12:21]} Bd7 {[%emt 0:05:18]} 16. Nf3 {[%emt 0:08:09]} O-O-O {[%emt 0:20:52]} 17. Qxd5 {[%emt 0:04:29]} Be6 {[%emt 0:04:10]} 18. Qxd6 {[%emt 0:00:42]} Bxd6 {[%emt 0:00:22]} 19. a3 {[%emt 0:08:27]} Bc7 {[%emt 0:02:20]} 20. Nd4 {[%emt 0:03:43]} Nxd4 {[%emt 0:00:23]} 21. Bxd4 {[%emt 0:00:34]} Bf4+ {[%emt 0:00:44]} 22. Kc2 {[%emt 0:01:07]} Rhg8 {[%emt 0:02:34]} 23. Bd3 {[%emt 0:02:50]} a6 {[%emt 0:01:45]} 24. Bh7 {[%emt 0:02:30]} Rh8 {[%emt 0:00:21]} 25. Bf5 {[%emt 0:02:14]} Bxf5+ {[%emt 0:01:54]} 26. gxf5 {[%emt 0:01:22]} Rhg8 {[%emt 0:00:18]} 27. Rdg1 {[%emt 0:01:48]} Bg5 {[%emt 0:00:59]} 28. f4 {[%emt 0:00:49]} Bxf4 {[%emt 0:00:16]} 29. Rxg7 {[%emt 0:01:01]} Rxg7 {[%emt 0:00:19]} 30. Rxg7 {[%emt 0:00:28]} Rd7 {[%emt 0:00:33]} 31. Kd3 {[%emt 0:06:00]} Kc7 {[%emt 0:00:44]} 32. a4 {[%emt 0:03:01]} Bg5 {[%emt 0:01:20]} 33. Ke4 {[%emt 0:02:27]} Kd6 {[%emt 0:00:51]} 34. Rg8 {[%emt 0:02:06]} Rd8 {[%emt 0:00:56]} 35. Rg7 {[%emt 0:01:03]} Ke7 {[%emt 0:01:23]} 36. Rh7 {[%emt 0:01:28]} Kf8 {[%emt 0:01:34]} 37. f6 {[%emt 0:04:36]} Kg8 {[%emt 0:00:47]} 38. Rg7+ {[%emt 0:00:12]} Kf8 {[%emt 0:00:06]} 39. Rh7 {[%emt 0:04:27]} Ke8 {[%emt 0:01:00]} 40. Ke5 {[%emt 0:00:00]} Rc8 {[%emt 0:00:00]} 41. Rh8+ {[%emt 0:04:55]} Kd7 {[%emt 0:04:53]} 42. Rh7 {[%emt 0:00:27]} 1/2-1/2